bitfinex/quotes_BTCUSD_20250412
["timestamp","ask_amount","ask_price","bid_price","bid_amount"]
[1744422631563,0.91964645,83200.0,83181.0,0.002422]
[1744422631959,1.04037493,83200.0,83181.0,0.002422]
[1744422633275,1.17821493,83200.0,83181.0,0.002422]
[1744422633513,1.43739052,83200.0,83181.0,0.002422]
[1744422635614,1.31666204,83200.0,83181.0,0.002422]
[1744422636146,1.32292728,83200.0,83181.0,0.002422]
[1744422636352,1.35031967,83200.0,83181.0,0.002422]
[1744422638218,1.35031967,83200.0,83182.0,0.240434]
[1744422638421,1.32292725,83200.0,83191.0,0.049844]
[1744422638598,1.06424571,83200.0,83191.0,0.049844]
[1744422639887,1.06424571,83200.0,83191.0,0.000844]
[1744422640088,1.04183861,83200.0,83191.0,0.000844]
[1744422641386,1.04183861,83200.0,83192.0,0.0477219]
[1744422643863,1.06428833,83200.0,83192.0,0.0477219]
[1744422647492,0.72428833,83200.0,83192.0,0.0477219]
[1744422648197,1.06428833,83200.0,83192.0,0.0477219]
[1744422649198,0.82390433,83200.0,83192.0,0.0477219]
[1744422649401,0.82390433,83200.0,83192.0,0.0597419]
[1744422649575,0.48390433,83200.0,83199.0,0.047044]
[1744422652034,0.48390433,83200.0,83199.0,0.094644]
[1744422652203,0.04846353,83200.0,83199.0,0.094644]
[1744422652408,0.03364688,83200.0,83199.0,0.094644]
[1744422652825,0.01119716,83200.0,83199.0,0.094644]
[1744422653884,0.01119716,83210.0,83204.0,0.012018]
[1744422654058,0.01237823,83209.0,83205.0,0.0476]
[1744422654261,0.19237823,83209.0,83207.0,0.240361]
[1744422655012,0.19237823,83209.0,83208.0,0.21564154]
[1744422655169,0.01237823,83209.0,83208.0,0.21564154]
[1744422655571,0.25917559,83214.0,83211.0,0.012017]
[1744422656796,0.25917559,83214.0,83212.0,0.240349]
[1744422657159,0.10522539,83220.0,83218.0,0.24033]
[1744422657359,0.182016,83220.0,83212.0,0.240349]
[1744422657560,0.012016,83219.0,83215.0,0.240341]
[1744422657719,0.11,83219.0,83217.0,0.240335]
[1744422658943,0.122016,83219.0,83215.0,0.240341]
[1744422660010,0.11,83219.0,83217.0,0.240335]
[1744422661580,0.01256383,83218.0,83217.0,0.240335]
[1744422661893,0.09256383,83218.0,83217.0,0.240335]
[1744422665832,0.09256383,83218.0,83215.0,0.240341]
[1744422666039,0.09256383,83218.0,83216.0,0.240336]
[1744422668988,0.09256383,83218.0,83215.0,0.240341]
[1744422669367,0.10457983,83218.0,83215.0,0.240341]
[1744422673038,0.34491283,83218.0,83212.0,0.240347]
[1744422673236,0.012016,83216.0,83213.0,0.240345]
[1744422673567,0.02520081,83215.0,83212.0,0.240347]
[1744422673796,0.06520081,83215.0,83212.0,0.240347]
[1744422673989,0.05318381,83215.0,83213.0,0.240345]
[1744422674714,0.06520081,83215.0,83212.0,0.240347]
[1744422674916,0.012017,83214.0,83210.0,0.240355]
[1744422675108,0.01318585,83213.0,83210.0,0.240355]
[1744422675325,0.19318585,83213.0,83210.0,0.240355]
[1744422676011,0.19318585,83213.0,83211.0,0.240351]
[1744422676932,0.20520285,83213.0,83210.0,0.240355]
[1744422677153,0.012017,83211.0,83205.0,0.240368]
[1744422677359,0.06,83211.0,83209.0,0.240356]
[1744422677509,0.06,83211.0,83203.0,0.012018]
[1744422677510,0.012018,83202.0,83196.0,0.012019]
[1744422677717,0.02,83202.0,83197.0,0.012019]
[1744422677931,0.01299178,83201.0,83199.0,0.241229]
[1744422678132,0.18299178,83201.0,83199.0,0.241229]
[1744422679653,0.4717273,83201.0,83199.0,0.000844]
[1744422679837,0.42337478,83201.0,83199.0,0.000844]
[1744422680037,0.03364396,83200.0,83199.0,0.000844]
[1744422680237,0.05364396,83200.0,83199.0,0.000844]
[1744422680434,0.06662009,83200.0,83199.0,0.000844]
[1744422688566,0.44663722,83200.0,83199.0,0.000844]
[1744422689187,0.49393722,83200.0,83199.0,0.000844]
[1744422690370,1.06319486,83200.0,83199.0,0.000844]
[1744422691344,0.626399,83195.0,83194.0,0.000844]
[1744422691579,1.18557213,83195.0,83194.0,0.000844]
[1744422691800,1.26782343,83195.0,83194.0,0.000844]
[1744422691993,1.28236428,83195.0,83194.0,0.000844]
[1744422692469,1.29357892,83195.0,83194.0,0.000844]
[1744422693053,1.29984416,83195.0,83194.0,0.000844]
[1744422693263,1.4143074,83195.0,83194.0,0.000844]
[1744422693684,1.4143074,83195.0,83181.0,0.002422]
[1744422693685,0.79195985,83188.0,83181.0,0.002422]
[1744422694027,0.79195985,83188.0,83177.0,0.000422]
[1744422694028,0.580448,83178.0,83177.0,0.000422]
[1744422694223,0.89583039,83178.0,83177.0,0.000469]
[1744422694346,0.91825971,83178.0,83177.0,0.000469]
[1744422694543,0.92947435,83178.0,83177.0,0.000469]
[1744422695045,1.09479286,83178.0,83177.0,0.000469]
[1744422695251,1.15324324,83178.0,83177.0,0.000469]
[1744422695895,1.1469787,83178.0,83177.0,0.000469]
[1744422696297,1.15324367,83178.0,83177.0,0.000469]
[1744422697108,0.59501785,83168.0,83167.0,0.000422]
[1744422697370,0.1,83166.0,83165.0,1e-07]
[1744422697523,0.78168239,83166.0,83165.0,1e-07]
[1744422697724,0.79430436,83166.0,83165.0,1e-07]
[1744422697949,0.82794832,83166.0,83165.0,1e-07]
[1744422700163,0.72794832,83166.0,83165.0,1e-07]
[1744422700338,0.82794832,83166.0,83165.0,1e-07]
[1744422700892,0.9486768,83166.0,83165.0,1e-07]
[1744422702465,0.82794832,83166.0,83165.0,1e-07]
[1744422703636,0.82894832,83166.0,83165.0,1e-07]
[1744422704090,0.82794832,83166.0,83165.0,1e-07]
[1744422704499,0.99386832,83166.0,83165.0,1e-07]
[1744422704902,0.82794832,83166.0,83165.0,1e-07]
[1744422705101,1.1145968,83166.0,83165.0,1e-07]
[1744422706293,0.99386832,83166.0,83165.0,1e-07]
[1744422706896,0.45454085,83162.0,83151.0,0.002]
[1744422707230,0.74771459,83162.0,83151.0,0.002]
[1744422707441,0.67014391,83162.0,83151.0,0.002]
[1744422707748,0.77014391,83162.0,83151.0,0.002]
[1744422707955,0.93606391,83162.0,83151.0,0.002]
[1744422708157,0.94727855,83162.0,83151.0,0.002]
[1744422709962,1.06800703,83162.0,83151.0,0.002]
[1744422712753,0.24052,83153.0,83151.0,0.002]
[1744422712959,0.13151399,83152.0,83151.0,0.002]
[1744422713261,0.31394331,83152.0,83151.0,0.002]
[1744422714226,0.32515795,83152.0,83151.0,0.002]
[1744422714426,0.66515795,83152.0,83151.0,0.002]
[1744422714862,0.54431641,83152.0,83151.0,0.0493]
[1744422718184,0.54431641,83152.0,83151.0,0.002]
[1744422718594,0.7821789,83152.0,83151.0,0.002]
[1744422719001,0.90290738,83152.0,83151.0,0.002]
[1744422719220,0.7821789,83152.0,83151.0,0.002]
[1744422723853,0.7821789,83152.0,83151.0,0.002]
[1744422734912,0.75974958,83152.0,83151.0,0.002]
[1744422735713,0.012027,83146.0,83143.0,0.0004221]
[1744422735982,0.012027,83146.0,83143.0,0.00052385]
[1744422735983,0.24844795,83145.0,83143.0,0.00052385]
[1744422737461,0.24844795,83145.0,83144.0,0.240546]
[1744422737695,0.24844795,83145.0,83144.0,0.290146]
[1744422738070,0.24844795,83145.0,83144.0,0.0496]
[1744422739178,0.01058546,83145.0,83144.0,0.0496]
[1744422739330,0.012026,83148.0,83144.0,0.061627]
[1744422739673,0.01056641,83147.0,83144.0,0.061627]
[1744422740575,0.01056641,83147.0,83144.0,0.0496]
[1744422741754,0.02259241,83147.0,83144.0,0.0496]
[1744422745024,0.01056641,83147.0,83144.0,0.061627]
[1744422745235,0.01056641,83147.0,83144.0,0.0496]
[1744422745773,0.02259241,83147.0,83144.0,0.0496]
[1744422749324,0.26313141,83147.0,83144.0,0.0496]
[1744422749899,0.240543,83145.0,83144.0,0.0496]
[1744422750278,0.25062872,83145.0,83144.0,0.0496]
[1744422750694,0.01008572,83145.0,83144.0,0.0496]
[1744422750916,0.01008572,83145.0,83144.0,0.290146]
[1744422751120,0.012026,83152.0,83147.0,0.252563]
[1744422751319,0.012026,83151.0,83147.0,0.252563]
[1744422751666,0.012026,83151.0,83150.0,0.0987]
[1744422751667,0.01008662,83151.0,83150.0,0.0987]
[1744422751775,0.01008662,83151.0,83150.0,0.22194657]
[1744422751996,0.23786249,83156.0,83153.0,0.012026]
[1744422752222,0.23786249,83156.0,83155.0,0.0987]
[1744422752509,0.23786249,83156.0,83155.0,0.21954154]
[1744422753098,0.23786249,83156.0,83155.0,0.0987]
[1744422754956,0.26849916,83156.0,83155.0,0.0987]
[1744422755314,0.240514,83155.0,83154.0,0.05]
[1744422755515,0.24803218,83156.0,83154.0,0.05]
[1744422755636,0.01017069,83155.0,83154.0,0.05]
[1744422756234,0.18017069,83155.0,83154.0,0.05]
[1744422756641,0.41803318,83155.0,83154.0,0.05]
[1744422756857,0.45163237,83155.0,83154.0,0.05]
[1744422759998,0.42923291,83155.0,83154.0,0.05]
[1744422760555,0.41803318,83155.0,83154.0,0.05]
[1744422761744,0.65854718,83155.0,83154.0,0.05]
[1744422781181,0.012026,83149.0,83145.0,0.012027]
[1744422781525,0.02214415,83148.0,83144.0,0.252573]
[1744422783631,0.03214415,83148.0,83144.0,0.252573]
[1744422784823,0.02214415,83148.0,83144.0,0.252573]
[1744422786342,0.02214415,83148.0,83146.0,0.05]
[1744422787854,0.01011815,83148.0,83146.0,0.290539]
[1744422788236,0.012026,83149.0,83146.0,0.290539]
[1744422788436,0.01011385,83147.0,83146.0,0.290539]
[1744422788661,0.012026,83149.0,83146.0,0.290539]
[1744422788864,0.01011484,83147.0,83146.0,0.290539]
[1744422789019,0.012026,83149.0,83146.0,0.290539]
[1744422789242,0.01011385,83148.0,83146.0,0.290539]
[1744422790322,0.01011385,83148.0,83146.0,0.288539]
[1744422791366,0.01011385,83148.0,83146.0,0.048]
[1744422792548,0.012026,83149.0,83146.0,0.048]
[1744422792723,0.01011236,83147.0,83146.0,0.048]
[1744422793016,0.012026,83149.0,83146.0,0.048]
[1744422793221,0.01011236,83148.0,83146.0,0.048]
[1744422797401,0.01011236,83148.0,83146.0,0.288538]
[1744422797519,0.01011236,83148.0,83146.0,0.048]
[1744422797719,0.012026,83149.0,83146.0,0.048]
[1744422797919,0.01011236,83147.0,83146.0,0.048]
[1744422798180,0.012026,83149.0,83146.0,0.048]
[1744422798979,0.01011236,83148.0,83146.0,0.048]
[1744422802803,0.01011236,83148.0,83145.0,0.252567]
[1744422804987,0.01011236,83148.0,83146.0,0.240537]
[1744422805316,0.012026,83150.0,83146.0,0.240537]
[1744422805540,0.01011236,83147.0,83146.0,0.240537]
[1744422805737,0.012026,83149.0,83146.0,0.240537]
[1744422805944,0.01011335,83147.0,83146.0,0.240537]
[1744422806146,0.012026,83149.0,83146.0,0.240537]
[1744422806354,0.01011335,83147.0,83146.0,0.240537]
[1744422806535,0.012026,83149.0,83146.0,0.240537]
[1744422807092,0.01011236,83148.0,83146.0,0.240537]
[1744422809301,0.01008509,83147.0,83146.0,0.240537]
[1744422809709,0.012026,83150.0,83146.0,0.240537]
[1744422809863,0.01008608,83147.0,83146.0,0.240537]
[1744422810066,0.012026,83149.0,83146.0,0.240537]
[1744422810421,0.01008608,83147.0,83146.0,0.240537]
[1744422810710,0.012026,83152.0,83147.0,0.240536]
[1744422810863,0.012026,83151.0,83147.0,0.240536]
[1744422811385,0.240508,83158.0,83146.0,0.012027]
[1744422811585,0.01008509,83154.0,83152.0,0.240523]
[1744422811838,0.01008509,83154.0,83151.0,0.240524]
[1744422812378,0.01008509,83154.0,83151.0,0.25255]
[1744422812781,0.01008509,83154.0,83151.0,0.240524]
[1744422817131,0.012026,83151.0,83148.0,0.05]
[1744422817355,0.012026,83152.0,83148.0,0.05]
[1744422817575,0.0100831,83150.0,83148.0,0.05]
[1744422817895,0.0100831,83149.0,83148.0,0.05]
[1744422818302,0.012026,83152.0,83148.0,0.05]
[1744422818439,0.01008409,83149.0,83148.0,0.05]
[1744422818642,0.012026,83152.0,83148.0,0.05]
[1744422818843,0.0100831,83151.0,83148.0,0.290532]
[1744422819081,0.0100831,83151.0,83149.0,0.24053]
[1744422819297,0.0221091,83151.0,83148.0,0.290532]
[1744422819494,0.240529,83150.0,83148.0,0.05]
[1744422819658,0.240529,83150.0,83143.0,0.00052385]
[1744422819659,0.012026,83147.0,83143.0,0.24107085]
[1744422819862,0.022026,83147.0,83143.0,0.24107085]
[1744422820057,0.01008808,83146.0,83143.0,0.25309785]
[1744422820428,0.02008808,83146.0,83143.0,0.24107085]
[1744422821510,0.02008808,83146.0,83145.0,0.240543]
[1744422823307,0.02008808,83146.0,83143.0,0.24107085]
[1744422823308,0.03211508,83146.0,83143.0,0.24107085]
[1744422823515,0.27265808,83146.0,83143.0,0.00052385]
[1744422824423,0.287946,83144.0,83143.0,0.00052385]
[1744422824570,0.377946,83144.0,83143.0,0.00052385]
[1744422824782,1.01210729,83144.0,83143.0,0.00052385]
[1744422824992,0.580581,83132.0,83127.0,0.0004221]
[1744422825201,0.98876434,83132.0,83131.0,0.05726714]
[1744422829891,0.99788969,83132.0,83131.0,0.05726714]
[1744422830089,1.23522833,83132.0,83131.0,0.05726714]
[1744422831233,1.10526144,83132.0,83131.0,0.05726714]
[1744422831436,1.00796144,83132.0,83131.0,0.05726714]
[1744422831607,1.00796144,83132.0,83131.0,0.00089237]
[1744422836141,0.66796144,83132.0,83131.0,0.00089237]
[1744422840811,0.6647664,83132.0,83131.0,0.00089237]
[1744422861168,0.4241854,83132.0,83131.0,0.00089237]
[1744422861387,0.00684676,83132.0,83131.0,0.00089237]
[1744422861611,0.012028,83138.0,83133.0,0.012028]
[1744422862016,0.01766196,83137.0,83133.0,0.012028]
[1744422862212,0.012028,83136.0,83132.0,0.240581]
[1744422862439,0.01766196,83137.0,83133.0,0.240575]
[1744422862653,0.00563496,83135.0,83133.0,0.240575]
[1744422863070,0.012028,83136.0,83133.0,0.240575]
[1744422863269,0.00563496,83134.0,83133.0,0.240575]
[1744422863505,0.012028,83136.0,83133.0,0.240575]
[1744422863737,0.00563595,83134.0,83133.0,0.240575]
[1744422864761,0.012028,83136.0,83133.0,0.240575]
[1744422864938,0.00563595,83134.0,83133.0,0.240575]
[1744422865108,0.012028,83136.0,83133.0,0.240575]
[1744422865284,0.00563496,83135.0,83133.0,0.240575]
[1744422872471,0.012028,83134.0,83131.0,0.00089237]
[1744422872710,0.01766296,83135.0,83131.0,0.24147337]
[1744422872887,0.00552953,83133.0,83131.0,0.24147337]
[1744422873088,0.012028,83135.0,83131.0,0.24147337]
[1744422873291,0.00552953,83132.0,83131.0,0.24147337]
[1744422873512,0.012028,83135.0,83131.0,0.24147337]
[1744422874057,0.00552953,83134.0,83131.0,0.24147337]
[1744422874256,0.00552953,83134.0,83133.0,0.240578]
[1744422874618,0.012028,83137.0,83133.0,0.240578]
[1744422874960,0.00552853,83134.0,83133.0,0.240578]
[1744422875166,0.012028,83137.0,83133.0,0.240578]
[1744422875499,0.00552853,83136.0,83133.0,0.240578]
[1744422877031,0.00552853,83136.0,83134.0,0.240573]
[1744422877794,0.012028,83137.0,83134.0,0.240573]
[1744422878153,0.00461236,83136.0,83134.0,0.240573]
[1744422879556,0.012028,83139.0,83136.0,0.240569]
[1744422879851,0.00461037,83138.0,83136.0,0.240569]
[1744422880902,0.012028,83139.0,83136.0,0.240569]
[1744422881102,0.00461037,83137.0,83136.0,0.240569]
[1744422881305,0.012028,83139.0,83136.0,0.240569]
[1744422881460,0.00461136,83137.0,83136.0,0.240569]
[1744422881657,0.012027,83140.0,83136.0,0.240569]
[1744422881858,0.012027,83140.0,83134.0,0.240573]
[1744422881859,0.012027,83142.0,83138.0,0.240562]
[1744422882043,0.022027,83142.0,83138.0,0.240562]
[1744422882524,0.022027,83142.0,83137.0,0.240564]
[1744422882525,0.012027,83141.0,83137.0,0.240564]
[1744422882767,0.022027,83141.0,83137.0,0.235564]
[1744422884988,0.022027,83141.0,83137.0,0.230564]
[1744422885723,0.01,83141.0,83138.0,0.240561]
[1744422885935,0.012027,83143.0,83139.0,0.240558]
[1744422886089,0.012027,83143.0,83140.0,0.240556]
[1744422886431,0.012027,83143.0,83139.0,0.240558]
[1744422886432,0.012027,83142.0,83139.0,0.240558]
[1744422886687,0.012027,83141.0,83137.0,0.240565]
[1744422886820,0.25718193,83142.0,83138.0,0.240561]
[1744422887023,0.00460293,83142.0,83141.0,0.240555]
[1744422887524,0.24936564,83145.0,83141.0,0.240555]
[1744422887725,0.25936564,83145.0,83141.0,0.240555]
[1744422887966,0.01662694,83144.0,83141.0,0.240555]
[1744422888961,0.02662694,83144.0,83141.0,0.240555]
[1744422890143,0.01459994,83144.0,83141.0,0.240555]
[1744422891230,0.01459994,83144.0,83141.0,0.235555]
[1744422893079,0.01459994,83144.0,83141.0,0.230555]
[1744422895332,0.02662694,83144.0,83141.0,0.230555]
[1744422900391,0.01459994,83144.0,83142.0,0.24055]
[1744422900562,0.01,83144.0,83142.0,0.24055]
[1744422900923,0.012026,83149.0,83144.0,0.240544]
[1744422901105,0.022026,83149.0,83144.0,0.240544]
[1744422901506,0.012026,83147.0,83144.0,0.240544]
[1744422901707,0.032026,83147.0,83144.0,0.240544]
[1744422903003,0.02,83147.0,83144.0,0.240544]
[1744422904086,0.02,83147.0,83145.0,0.240541]
[1744422909431,0.02,83147.0,83145.0,0.24294617]
[1744422909999,0.02,83147.0,83146.0,0.0478]
[1744422910400,0.02,83147.0,83146.0,0.05020515]
[1744422911316,0.012025,83158.0,83148.0,0.012026]
[1744422911521,0.18,83158.0,83156.0,0.240509]
[1744422912771,0.012025,83157.0,83153.0,0.240519]
[1744422912974,0.042025,83157.0,83153.0,0.240519]
[1744422914010,0.03,83157.0,83154.0,0.240515]
[1744422914681,0.01210399,83158.0,83156.0,0.240511]
[1744422914682,7.899e-05,83158.0,83156.0,0.240511]
[1744422914886,7.899e-05,83158.0,83156.0,0.24291586]
[1744422915065,7.899e-05,83158.0,83156.0,0.29071586]
[1744422915258,7.899e-05,83158.0,83156.0,0.288311]
[1744422915463,7.899e-05,83158.0,83157.0,0.00240477]
[1744422916279,7.899e-05,83158.0,83156.0,0.288311]
[1744422917546,7.899e-05,83158.0,83157.0,0.12324631]
[1744422920339,7.899e-05,83158.0,83157.0,0.12084154]
[1744422920898,7.899e-05,83158.0,83157.0,0.26644154]
[1744422923510,7.899e-05,83158.0,83157.0,0.12084154]
[1744422923710,7.899e-05,83158.0,83157.0,0.26644154]
[1744422938962,7.899e-05,83158.0,83157.0,0.70274154]
[1744422940107,7.899e-05,83158.0,83157.0,0.71728239]
[1744422951027,7.899e-05,83158.0,83157.0,0.60644154]
[1744422951165,7.899e-05,83158.0,83157.0,0.46084154]
[1744422951360,7.899e-05,83158.0,83157.0,0.60432154]
[1744422954215,7.899e-05,83158.0,83157.0,0.46084154]
[1744422954531,7.899e-05,83158.0,83157.0,0.60432154]
[1744422971225,7.899e-05,83158.0,83157.0,0.46084154]
[1744422971434,7.899e-05,83158.0,83157.0,0.60432154]
[1744422975758,7.899e-05,83158.0,83157.0,0.60204154]
[1744422977774,7.899e-05,83158.0,83157.0,0.1412]
[1744422977955,0.05697899,83158.0,83157.0,0.1412]
[1744422978457,0.287408,83157.0,83156.0,0.05637477]
[1744422978699,0.467408,83157.0,83156.0,0.05637477]
[1744422981457,0.0475,83151.0,83149.0,0.05637477]
[1744422981606,0.0575,83151.0,83149.0,0.05637477]
[1744422982450,0.0475,83151.0,83149.0,0.05637477]
[1744422984018,0.240529,83150.0,83149.0,0.05637477]
[1744422984256,0.250529,83150.0,83149.0,0.05637477]
[1744422985675,0.58016764,83150.0,83149.0,0.05637477]
[1744422985985,0.58016764,83150.0,83136.0,0.1412]
[1744422985986,0.012028,83136.0,83132.0,0.012029]
[1744422986119,0.012028,83134.0,83131.0,0.0004221]
[1744422986722,0.012028,83134.0,83131.0,0.0124511]
[1744422987680,0.240578,83133.0,83131.0,0.0004221]
[1744422988640,0.012028,83134.0,83131.0,0.0004221]
[1744422988839,0.252591,83139.0,83134.0,0.012028]
[1744422988957,0.012028,83138.0,83134.0,0.012028]
[1744422990395,0.012028,83137.0,83134.0,0.012028]
[1744422992013,0.012028,83137.0,83135.0,0.05]
[1744422993916,0.252596,83137.0,83135.0,0.05]
[1744423001522,0.012028,83137.0,83135.0,0.05]
[1744423001819,0.252596,83137.0,83135.0,0.05]
[1744423005178,0.012028,83137.0,83135.0,0.05]
[1744423005505,0.252597,83137.0,83135.0,0.05]
[1744423007994,0.262597,83137.0,83135.0,0.05]
[1744423011601,0.01210697,83139.0,83135.0,0.05]
[1744423011846,0.240564,83138.0,83135.0,0.05]
[1744423012014,0.262592,83138.0,83135.0,0.05]
[1744423012235,0.240569,83137.0,83135.0,0.05]
[1744423013018,0.250569,83137.0,83135.0,0.05]
[1744423013434,0.0485,83136.0,83135.0,0.05]
[1744423013632,0.0885,83136.0,83135.0,0.05]
[1744423014066,0.012028,83134.0,83131.0,0.0004221]
[1744423014268,0.072028,83134.0,83131.0,0.0004221]
[1744423015775,0.240578,83133.0,83131.0,0.0004221]
[1744423016148,0.280578,83133.0,83131.0,0.0004221]
[1744423016297,0.328478,83133.0,83131.0,0.0004221]
[1744423021143,0.0479,83132.0,83131.0,0.0004221]
[1744423021399,0.2279,83132.0,83131.0,0.0004221]
[1744423026458,0.46523864,83132.0,83131.0,0.0004221]
[1744423027892,0.58608018,83132.0,83131.0,0.0004221]
[1744423030929,1.09380866,83132.0,83131.0,0.0004221]
[1744423031225,1.11376018,83132.0,83131.0,0.0004221]
[1744423040943,0.97308018,83132.0,83131.0,0.0004221]
[1744423041148,1.11336018,83132.0,83131.0,0.0004221]
[1744423043979,0.97308018,83132.0,83131.0,0.0004221]
[1744423044163,1.11336018,83132.0,83131.0,0.0004221]
[1744423045022,1.23408866,83132.0,83131.0,0.0004221]
[1744423045628,1.11336018,83132.0,83131.0,0.0004221]
[1744423050186,1.01846018,83132.0,83131.0,0.0004221]
[1744423050393,0.41733864,83132.0,83131.0,0.0004221]
[1744423052452,0.23733864,83132.0,83131.0,0.0485221]
[1744423053504,0.012028,83136.0,83131.0,0.3011321]
[1744423053707,0.012028,83135.0,83132.0,0.012029]
[1744423053909,0.022028,83135.0,83131.0,0.3011321]
[1744423054739,0.012028,83134.0,83131.0,0.3011321]
[1744423054945,0.022028,83134.0,83131.0,0.2891031]
[1744423055532,0.01,83134.0,83131.0,0.0485221]
[1744423055712,0.022028,83134.0,83131.0,0.0485221]
[1744423056289,0.022028,83134.0,83132.0,0.00751613]
[1744423056684,0.022028,83134.0,83131.0,0.05603823]
[1744423056904,0.01,83134.0,83131.0,0.29662123]
[1744423057053,0.01,83134.0,83131.0,0.30865023]
[1744423057672,0.01,83134.0,83131.0,0.0485221]
[1744423057891,0.022028,83134.0,83131.0,0.0485221]
[1744423059382,0.01,83134.0,83131.0,0.3011341]
[1744423059987,0.022028,83134.0,83131.0,0.0485221]
[1744423060415,0.01,83134.0,83131.0,0.0605511]
[1744423060620,0.01,83134.0,83131.0,0.0485221]
[1744423060917,0.022028,83134.0,83131.0,0.0485221]
[1744423061718,0.01,83134.0,83132.0,0.240578]
[1744423062019,0.01,83134.0,83133.0,0.240578]
[1744423068558,0.012027,83141.0,83138.0,0.240563]
[1744423068761,0.01007897,83139.0,83138.0,0.240563]
[1744423077298,7.897e-05,83139.0,83138.0,0.240563]
[1744423077505,7.897e-05,83139.0,83138.0,0.45370454]
[1744423081608,7.897e-05,83139.0,83138.0,0.36140454]
[1744423081791,0.01007897,83139.0,83138.0,0.240563]
[1744423088767,0.01007897,83139.0,83134.0,0.240575]
[1744423088768,0.02210697,83139.0,83134.0,0.240575]
[1744423089275,0.02210697,83139.0,83136.0,0.240566]
[1744423089276,0.01007897,83139.0,83136.0,0.240566]
[1744423089477,0.01007897,83139.0,83137.0,0.240564]
[1744423092664,7.897e-05,83139.0,83138.0,0.00751519]
[1744423093728,7.897e-05,83139.0,83137.0,0.36140554]
[1744423093929,7.897e-05,83139.0,83137.0,0.240564]
[1744423111612,0.01210697,83139.0,83131.0,0.0004221]
[1744423111847,0.01007897,83139.0,83131.0,0.0004221]
[1744423112012,0.01007897,83139.0,83137.0,0.240565]
[1744423137389,7.897e-05,83139.0,83137.0,0.240565]
[1744423147233,0.01007897,83139.0,83137.0,0.240565]
[1744423147550,0.01007897,83139.0,83137.0,0.240564]
[1744423149819,7.897e-05,83139.0,83137.0,0.240564]
[1744423160502,7.897e-05,83139.0,83138.0,0.16754154]
[1744423162029,7.897e-05,83139.0,83138.0,0.16994684]
[1744423163788,7.897e-05,83139.0,83138.0,0.21964684]
[1744423165559,7.897e-05,83139.0,83138.0,0.21724154]
[1744423165756,7.897e-05,83139.0,83138.0,0.21964675]
[1744423172366,7.897e-05,83139.0,83138.0,0.5741876]
[1744423172588,7.897e-05,83139.0,83138.0,0.57178239]
[1744423175570,7.897e-05,83139.0,83138.0,0.58060632]
[1744423176160,7.897e-05,83139.0,83138.0,0.98880632]
[1744423176721,7.897e-05,83139.0,83138.0,1.04518109]
[1744423177693,7.897e-05,83139.0,83138.0,1.18522109]
[1744423178095,0.04599702,83161.0,83158.0,0.012025]
[1744423178295,0.04607615,83161.0,83158.0,0.012025]
[1744423178523,0.04607615,83161.0,83159.0,0.240503]
[1744423179985,0.04487615,83161.0,83159.0,0.240503]
[1744423180154,0.04487615,83161.0,83160.0,0.12084154]
[1744423180155,7.913e-05,83161.0,83160.0,0.12084154]
[1744423192615,7.913e-05,83161.0,83159.0,0.240503]
[1744423192799,0.0459,83160.0,83159.0,0.240503]
[1744423193778,0.0759,83160.0,83158.0,0.240504]
[1744423200155,0.0754,83160.0,83158.0,0.240504]
[1744423201394,0.0454,83160.0,83158.0,0.240504]
[1744423202168,7.913e-05,83161.0,83160.0,0.2405]
[1744423202989,0.01007913,83161.0,83160.0,0.2405]
[1744423203586,0.01007913,83161.0,83158.0,0.240503]
[1744423203786,0.01007913,83161.0,83158.0,0.252528]
[1744423204030,0.01007913,83161.0,83159.0,0.240501]
[1744423204204,0.012026,83153.0,83146.0,0.012027]
[1744423204469,0.04,83153.0,83150.0,0.252555]
[1744423204744,0.04,83153.0,83149.0,0.252555]
[1744423204989,0.04,83153.0,83150.0,0.012026]
[1744423205510,0.052026,83153.0,83150.0,0.012026]
[1744423206396,0.04,83153.0,83151.0,0.240526]
[1744423206548,0.252532,83158.0,83153.0,0.252544]
[1744423206755,0.012025,83156.0,83153.0,0.012026]
[1744423206918,0.01,83156.0,83153.0,0.012026]
[1744423207293,0.022025,83156.0,83153.0,0.012026]
[1744423207496,0.022025,83156.0,83151.0,0.252552]
[1744423208512,0.252539,83155.0,83151.0,0.252552]
[1744423209858,0.012025,83157.0,83152.0,0.252547]
[1744423210122,0.262536,83157.0,83152.0,0.252547]
[1744423210309,0.012025,83156.0,83152.0,0.252547]
[1744423210505,0.01,83156.0,83153.0,0.252544]
[1744423210921,0.01,83156.0,83153.0,0.012026]
[1744423211272,0.012025,83157.0,83153.0,0.252543]
[1744423211496,0.012025,83157.0,83154.0,0.012025]
[1744423212836,0.23733864,83165.0,83154.0,0.012025]
[1744423212837,0.24936264,83165.0,83160.0,0.2405]
[1744423213053,0.23733864,83165.0,83160.0,0.2405]
[1744423214995,0.0008438,83175.0,83160.0,0.45684154]
[1744423217810,0.0008438,83175.0,83160.0,0.59680154]
[1744423219804,0.0008438,83175.0,83160.0,0.59672154]
[1744423220758,0.0008438,83175.0,83160.0,0.95126239]
[1744423220962,1.3e-07,83161.0,83160.0,1.35946239]
[1744423221168,0.0008438,83175.0,83174.0,0.69049985]
[1744423221371,0.0008438,83175.0,83174.0,0.81134139]
[1744423222080,0.0008438,83175.0,83174.0,0.95122139]
[1744423228577,0.0008438,83175.0,83174.0,0.79680054]
[1744423228782,0.0008438,83175.0,83174.0,0.84114054]
[1744423229017,0.0008438,83175.0,83174.0,0.70130054]
[1744423229218,0.0008438,83175.0,83174.0,0.84114054]
[1744423229994,0.0008438,83175.0,83174.0,0.70130054]
[1744423230213,0.2412998,83175.0,83174.0,0.13984]
[1744423230543,0.0466438,83175.0,83174.0,0.13984]
[1744423230924,0.0466438,83175.0,83173.0,1.47806]
[1744423230925,0.0466438,83175.0,83173.0,1.37744]
[1744423231271,0.0947438,83175.0,83173.0,1.37744]
[1744423231487,0.3352028,83175.0,83173.0,1.37744]
[1744423231670,0.0947438,83175.0,83173.0,1.37744]
[1744423232086,0.0947438,83175.0,83173.0,1.2376]
[1744423233087,0.0947438,83175.0,83174.0,0.240459]
[1744423233318,0.0947438,83175.0,83174.0,0.36130054]